bitfinex/quotes_SOLUSD_20250429
["timestamp","ask_amount","ask_price","bid_price","bid_amount"]
[1745899215971,37.66256228,147.53,147.52,1e-08]
[1745899217068,37.80472385,147.53,147.52,1e-08]
[1745899219776,82.89999999,147.51,147.5,0.063]
[1745899219979,11.33805928,147.51,147.5,0.063]
[1745899221379,17.43934054,147.51,147.5,0.063]
[1745899225179,17.43903169,147.52,147.5,0.063]
[1745899227485,21.34869535,147.55,147.5,0.063]
[1745899227701,11.33805928,147.54,147.5,11.40105928]
[1745899228278,11.33805928,147.53,147.5,0.063]
[1745899229197,11.33805928,147.52,147.5,0.063]
[1745899229793,17.43909009,147.52,147.5,0.063]
[1745899230293,11.33805928,147.51,147.5,0.063]
[1745899231293,17.43909009,147.52,147.5,0.063]
[1745899231595,6.10103081,147.52,147.5,0.063]
[1745899233399,17.43909009,147.52,147.5,0.063]
[1745899233898,11.33805928,147.51,147.5,0.063]
[1745899234102,17.36962664,147.51,147.5,0.063]
[1745899235104,6.10128126,147.51,147.5,0.063]
[1745899236603,11.33805928,147.51,147.5,0.063]
[1745899239402,17.43934054,147.51,147.5,0.063]
[1745899247197,6.10128126,147.51,147.5,0.063]
[1745899247704,17.43934054,147.51,147.5,0.063]
[1745899251311,6.10128126,147.51,147.5,0.063]
[1745899251615,17.43934054,147.51,147.5,0.063]
[1745899254801,17.43934054,147.51,147.46,0.063]
[1745899254802,22.67611856,147.5,147.46,0.063]
[1745899255116,11.33805928,147.47,147.46,0.063]
[1745899255627,24.75805928,147.48,147.46,0.063]
[1745899256812,6.10293619,147.47,147.46,0.063]
[1745899257397,19.52264498,147.48,147.46,0.063]
[1745899257602,6.10264498,147.48,147.46,0.063]
[1745899259925,17.44070426,147.48,147.46,0.063]
[1745899260697,11.33805928,147.49,147.46,0.063]
[1745899261023,6.10045414,147.53,147.48,11.33805928]
[1745899261204,6.10045414,147.53,147.5,11.33805928]
[1745899261702,17.43851342,147.53,147.49,11.33805928]
[1745899262309,11.33805928,147.52,147.48,11.33805928]
[1745899263420,17.43921488,147.52,147.48,11.33805928]
[1745899263622,11.33805928,147.5,147.46,11.54322085]
[1745899263814,94.23805928,147.5,147.46,11.54322085]
[1745899267315,11.33805928,147.48,147.46,0.063]
[1745899267526,94.23805928,147.47,147.46,0.063]
[1745899267717,11.33805928,147.47,147.46,0.063]
[1745899268326,11.33805928,147.47,147.44,0.063]
[1745899268515,11.33805928,147.45,147.44,0.063]
[1745899269406,17.44182326,147.45,147.44,0.063]
[1745899273710,11.33805928,147.44,147.43,0.063]
[1745899274616,17.44223725,147.44,147.43,0.063]
[1745899282643,18.64964886,147.39,147.29,7.7992]
[1745899282944,11.33805928,147.33,147.29,19.13725928]
[1745899283149,11.33805928,147.34,147.29,19.13725928]
[1745899283319,11.33805928,147.34,147.3,11.33805928]
[1745899283523,11.33805928,147.35,147.31,11.33805928]
[1745899284118,11.33805928,147.35,147.3,11.33805928]
[1745899284519,17.44633723,147.35,147.3,11.33805928]
[1745899285041,17.44633723,147.35,147.31,11.33805928]
[1745899285245,6.10827795,147.35,147.31,11.33805928]
[1745899285424,17.44633723,147.35,147.31,11.33805928]
[1745899286142,17.44633723,147.35,147.3,0.14216157]
[1745899286349,6.10678512,147.38,147.34,11.33805928]
[1745899286553,89.00678512,147.38,147.31,18.64964886]
[1745899286729,89.00678512,147.38,147.34,11.33805928]
[1745899286934,100.3448444,147.38,147.34,11.33805928]
[1745899288046,89.00678512,147.38,147.35,11.33805928]
[1745899288840,82.9,147.38,147.36,11.33805928]
[1745899289028,82.9,147.38,147.33,6.25074216]
[1745899289029,82.9,147.38,147.37,11.33805928]
[1745899289350,21.29788092,147.44,147.33,6.25074216]
[1745899289351,11.33805928,147.39,147.36,6.2098]
[1745899289550,11.33805928,147.39,147.35,12.89655928]
[1745899289740,11.33805928,147.38,147.34,11.33805928]
[1745899290327,11.33805928,147.38,147.33,0.14216157]
[1745899290528,11.33805928,147.36,147.32,30.96785928]
[1745899290736,17.44558941,147.36,147.32,30.96785928]
[1745899290937,11.33805928,147.35,147.32,19.6298]
[1745899292162,17.44558941,147.36,147.32,30.96785928]
[1745899293866,11.33805928,147.35,147.32,19.6298]
[1745899295644,17.44605946,147.35,147.32,13.42]
[1745899296466,17.44569284,147.36,147.32,13.42]
[1745899296763,17.44569284,147.36,147.31,12.89655928]
[1745899298037,17.44569284,147.36,147.32,11.33805928]
[1745899299052,15.26573604,147.39,147.32,11.33805928]
[1745899299265,94.23805928,147.36,147.32,11.33805928]
[1745899299939,82.9,147.36,147.33,11.33805928]
[1745899301135,82.9,147.36,147.32,11.33805928]
[1745899301136,100.34589786,147.36,147.32,11.33805928]
[1745899305061,82.9,147.36,147.35,11.33805928]
[1745899305247,11.33805928,147.39,147.35,11.33805928]
[1745899305443,89.00680757,147.38,147.35,11.33805928]
[1745899306156,100.34486685,147.38,147.34,11.33805928]
[1745899306661,89.00680757,147.38,147.34,11.33805928]
[1745899306843,89.00680757,147.38,147.35,11.33805928]
[1745899307157,100.34486685,147.38,147.35,11.33805928]
[1745899307357,89.00680757,147.38,147.35,11.33805928]
[1745899307563,94.23805928,147.38,147.35,11.33805928]
[1745899307941,100.34476625,147.38,147.34,11.33805928]
[1745899309461,94.23805928,147.38,147.34,11.33805928]
[1745899310064,100.34475459,147.38,147.34,11.33805928]
[1745899313065,82.9,147.38,147.37,11.33805928]
[1745899313470,82.9,147.38,147.36,11.33805928]
[1745899313639,82.9,147.38,147.33,26.12631552]
[1745899313963,100.34474608,147.38,147.34,11.33805928]
[1745899314157,11.33805928,147.37,147.34,11.33805928]
[1745899315232,100.34474608,147.38,147.34,11.33805928]
[1745899316469,100.34474608,147.38,147.33,20.0177]
[1745899316645,100.34474608,147.38,147.34,11.33805928]
[1745899323045,11.33805928,147.36,147.3,26.0]
[1745899323251,11.33805928,147.35,147.31,11.33805928]
[1745899324257,17.44613073,147.35,147.31,11.33805928]
[1745899324772,100.34570002,147.36,147.32,11.33805928]
[1745899324971,82.9,147.36,147.33,11.33805928]
[1745899326372,89.00754078,147.36,147.33,11.33805928]
[1745899330278,100.34560006,147.36,147.31,6.10949165]
[1745899330472,100.34560006,147.36,147.32,11.33805928]
[1745899330974,89.00754078,147.36,147.33,11.33805928]
[1745899331475,89.00754078,147.36,147.33,7.26754997]
[1745899333082,89.00754078,147.36,147.31,6.10949165]
[1745899333376,89.00754078,147.36,147.33,7.26754997]
[1745899334880,96.27509075,147.36,147.32,7.26754997]
[1745899336685,89.00754078,147.36,147.33,7.26754997]
[1745899337261,96.27509075,147.36,147.33,7.26754997]
[1745899341707,7.26754997,147.35,147.32,7.26754997]
[1745899341867,7.26754997,147.35,147.31,7.26754997]
[1745899342186,7.26754997,147.35,147.3,7.26754997]
[1745899342187,7.26754997,147.34,147.3,7.26754997]
[1745899342377,7.26754997,147.33,147.29,20.68754997]
[1745899343269,13.37632295,147.33,147.29,20.68754997]
[1745899346993,13.37632295,147.33,147.29,13.42]
[1745899347375,13.37632295,147.33,147.29,20.68754997]
[1745899347801,96.27632295,147.33,147.29,20.68754997]
[1745899349180,7.26754997,147.32,147.29,13.42]
[1745899349487,7.26754997,147.32,147.28,7.29754997]
[1745899349681,7.26754997,147.32,147.28,0.03]
[1745899349890,7.26754997,147.31,147.28,0.03]
[1745899350267,13.37724039,147.31,147.28,0.03]
[1745899353680,7.26754997,147.29,147.28,0.03]
[1745899356204,13.37794442,147.29,147.28,0.03]
[1745899361785,6.11039445,147.29,147.28,0.03]
[1745899362106,7.26754997,147.31,147.28,0.03]
[1745899362583,7.26754997,147.29,147.28,0.03]
[1745899364106,13.37794442,147.29,147.28,0.03]
[1745899367010,7.26754997,147.29,147.28,0.03]
[1745899368324,13.37794442,147.29,147.28,0.03]
[1745899373408,7.26754997,147.3,147.28,0.03]
[1745899375555,13.37779678,147.3,147.28,0.03]
[1745899382777,7.26754997,147.29,147.28,0.03]
[1745899383977,13.37794442,147.29,147.28,0.03]
[1745899400696,6.10997963,147.3,147.28,0.03]
[1745899400894,13.3775296,147.3,147.28,0.03]
[1745899401100,7.26754997,147.29,147.28,0.03]
[1745899402700,13.37794442,147.29,147.28,0.03]
[1745899415184,32.02759328,147.29,147.28,0.03]
[1745899416512,13.37794442,147.29,147.28,0.03]
[1745899422914,28.65393056,147.29,147.23,0.03]
[1745899423111,7.26754997,147.26,147.23,0.03]
[1745899426116,6.11205432,147.25,147.23,0.03]
[1745899427126,82.9,147.24,147.23,0.03]
[1745899429095,82.9,147.24,147.23,7.29754997]
[1745899440938,82.9,147.24,147.23,0.03]
[1745899441231,96.2800194,147.24,147.23,0.03]
[1745899441530,96.2800194,147.24,147.22,0.03]
[1745899441531,47.42611823,147.24,147.22,0.03]
[1745899441733,7.26754997,147.2,147.19,0.03]
[1745899441903,18.64964886,147.23,147.19,0.03]
[1745899441904,7.26754997,147.22,147.19,0.03]
[1745899442111,22.96614302,147.24,147.2,7.26754997]
[1745899442112,13.3800194,147.24,147.2,7.26754997]
[1745899442325,6.11246943,147.24,147.21,7.26754997]
[1745899442920,6.11246943,147.24,147.22,7.26754997]
[1745899443737,19.53219863,147.25,147.22,7.26754997]
[1745899443917,6.11219863,147.25,147.22,7.26754997]
[1745899445044,6.11219863,147.25,147.23,7.26754997]
[1745899445415,6.11163927,147.26,147.23,7.26754997]
[1745899445839,6.11163927,147.26,147.24,7.26754997]
[1745899446046,6.11163927,147.26,147.25,7.26754997]
[1745899446216,6.11163927,147.26,147.24,7.26754997]
[1745899448224,6.11163927,147.26,147.22,6.2077]
[1745899448552,89.01163927,147.26,147.24,7.26754997]
[1745899449047,89.01163927,147.26,147.25,7.26754997]
[1745899449657,0.063,147.28,147.25,7.26754997]
[1745899449833,0.063,147.28,147.23,0.14216157]
[1745899450148,0.063,147.28,147.27,7.26754997]
[1745899450332,0.063,147.28,147.26,7.26754997]
[1745899450645,0.063,147.28,147.27,7.26754997]
[1745899450850,13.44138477,147.28,147.22,6.2077]
[1745899451022,6.11246943,147.24,147.21,7.26754997]
[1745899451224,89.01246943,147.24,147.21,7.26754997]
[1745899452337,82.9,147.24,147.23,7.26754997]
[1745899452737,82.9,147.24,147.22,7.26754997]
[1745899453250,89.01247693,147.24,147.2,13.42]
[1745899453546,89.01247693,147.24,147.22,11.37401774]
[1745899456751,89.01247693,147.24,147.21,11.37401774]
[1745899458151,89.01247693,147.24,147.22,11.37401774]
[1745899459338,82.9,147.24,147.22,11.37401774]
[1745899459850,82.9,147.24,147.23,11.37401774]
[1745899460946,82.9,147.24,147.22,11.37401774]
[1745899464048,89.0124858,147.24,147.21,11.37401774]
[1745899464851,89.0124858,147.24,147.19,0.17216157]
[1745899465036,89.0124858,147.24,147.21,11.37401774]
[1745899466860,89.0124858,147.24,147.23,11.37401774]
[1745899467060,1.6147,147.27,147.23,11.37401774]
[1745899467061,6.11163927,147.26,147.23,11.37401774]
[1745899467534,6.11163927,147.26,147.24,11.37401774]
[1745899467935,6.11122428,147.27,147.24,11.37401774]
[1745899468142,82.9,147.26,147.23,11.37401774]
[1745899468551,82.9,147.26,147.24,11.37401774]
[1745899469252,89.01177554,147.26,147.24,11.37401774]
[1745899473860,82.9,147.25,147.24,11.37401774]
[1745899475560,82.9,147.25,147.24,7.27622825]
[1745899476260,89.01205432,147.25,147.24,7.27622825]
[1745899477363,82.9,147.25,147.24,7.27622825]
[1745899477862,82.9,147.27,147.24,7.27622825]
[1745899478069,82.9,147.27,147.26,7.27622825]
[1745899479566,82.9,147.27,147.26,11.36302748]
[1745899480169,82.9,147.27,147.23,6.11247941]
[1745899480465,82.9,147.27,147.26,11.36302748]
[1745899493253,82.9,147.27,147.26,17.47466675]
[1745899494373,0.063,147.28,147.26,17.47466675]
[1745899494574,0.063,147.28,147.27,11.36302748]
[1745899496061,0.063,147.28,147.27,17.47425176]
[1745899500557,0.063,147.28,147.27,28.83727924]
[1745899501066,0.063,147.28,147.27,30.33721458]
[1745899505452,0.063,147.28,147.27,43.95371662]
[1745899506177,0.063,147.3,147.27,59.23177732]
[1745899506483,0.063,147.3,147.29,7.41067297]
[1745899507560,0.063,147.3,147.29,17.6068651]
[1745899512889,0.063,147.3,147.29,36.25651396]
[1745899513067,0.063,147.34,147.32,11.35430908]
[1745899513467,0.063,147.34,147.32,11.49647065]
[1745899513677,0.063,147.34,147.32,30.14611951]
[1745899513975,0.063,147.34,147.33,22.70861816]
[1745899514575,0.063,147.34,147.33,11.35430908]
[1745899515392,0.063,147.34,147.33,17.46304457]
[1745899517188,0.063,147.34,147.33,11.35430908]
[1745899517374,0.063,147.34,147.31,13.42]
[1745899517570,0.063,147.34,147.32,11.35430908]
[1745899518192,0.063,147.34,147.33,11.35430908]
[1745899519797,0.063,147.34,147.31,13.42]
[1745899520089,0.063,147.34,147.32,11.35430908]
[1745899520598,0.063,147.34,147.31,13.42]
[1745899520771,0.063,147.34,147.32,11.35430908]
[1745899521172,0.063,147.34,147.31,24.77430908]
[1745899522485,0.063,147.34,147.32,11.35430908]
[1745899525191,0.063,147.34,147.33,11.35430908]
[1745899529475,0.063,147.34,147.33,17.60520614]
[1745899529984,0.063,147.34,147.33,36.254855]
[1745899533589,0.063,147.34,147.33,11.49647065]
[1745899533895,0.063,147.34,147.33,11.35430908]
[1745899534792,0.063,147.34,147.33,11.49647065]
[1745899535300,0.063,147.34,147.33,17.60520614]
[1745899535679,0.063,147.34,147.33,11.49647065]
[1745899536501,0.063,147.34,147.33,11.35430908]
[1745899536706,0.063,147.34,147.31,13.42]
[1745899536904,11.41730908,147.34,147.31,13.42]
[1745899537086,11.41730908,147.34,147.27,13.45]
[1745899537087,94.25430908,147.33,147.27,13.45]
[1745899537289,94.25430908,147.33,147.29,11.35430908]
[1745899538907,6.10915014,147.32,147.29,11.35430908]
[1745899541309,89.00882484,147.33,147.3,11.35430908]
[1745899541603,82.9,147.33,147.31,11.35430908]
[1745899544413,89.00876324,147.33,147.28,0.14216157]
[1745899544592,89.00876324,147.33,147.3,11.35430908]
[1745899545705,82.9,147.33,147.32,11.35430908]
[1745899546723,82.9,147.33,147.31,11.35430908]
[1745899547291,0.063,147.34,147.31,11.35430908]
[1745899551797,0.063,147.34,147.32,11.35430908]
[1745899551998,0.063,147.34,147.33,11.35430908]
[1745899562410,0.063,147.34,147.33,17.60520614]
[1745899564826,0.063,147.34,147.33,11.35430908]
[1745899565029,0.063,147.34,147.31,0.14216157]
[1745899565327,0.063,147.34,147.33,11.35430908]
[1745899570941,0.063,147.34,147.29,19.53023771]
[1745899571251,0.063,147.34,147.31,11.35430908]
[1745899571411,11.41730908,147.34,147.29,13.42]
[1745899571612,11.41730908,147.34,147.3,11.35430908]
[1745899573136,6.10873549,147.33,147.3,11.35430908]
[1745899574024,6.10873549,147.33,147.31,11.35430908]
[1745899575043,6.17132089,147.34,147.31,11.35430908]
[1745899576625,89.07132089,147.34,147.31,11.35430908]
[1745899579940,89.07132089,147.34,147.29,13.42]
[1745899579941,82.963,147.34,147.33,11.35430908]
[1745899580145,0.063,147.34,147.33,11.49647065]
[1745899580327,0.063,147.34,147.33,41.50042859]
[1745899581038,0.063,147.34,147.33,47.60916408]
[1745899581843,0.063,147.34,147.33,36.254855]
[1745899582243,0.063,147.34,147.33,11.49647065]
[1745899582423,0.063,147.34,147.33,11.35430908]
[1745899582725,0.063,147.34,147.31,11.35430908]
[1745899582933,6.17132089,147.34,147.31,11.35430908]
[1745899583142,6.17132089,147.34,147.3,11.35430908]
[1745899583728,6.17132089,147.34,147.31,11.35430908]
[1745899584728,17.52562997,147.34,147.3,11.35430908]
[1745899585049,6.17132089,147.34,147.31,11.35430908]
[1745899587653,6.17132089,147.34,147.29,13.42]
[1745899587854,6.17132089,147.34,147.31,11.35430908]
[1745899589454,100.42562997,147.34,147.3,11.35430908]
[1745899589653,89.07132089,147.34,147.3,11.35430908]
[1745899589842,89.07132089,147.34,147.31,11.35430908]
[1745899590355,82.963,147.34,147.33,11.35430908]
[1745899590557,0.063,147.34,147.33,11.35430908]
[1745899598267,0.063,147.34,147.33,17.60520614]
[1745899598566,0.063,147.34,147.33,48.96631186]
[1745899600048,0.063,147.37,147.34,18.79181043]
[1745899600267,0.063,147.37,147.36,11.49647065]
[1745899601148,0.063,147.37,147.36,17.6039625]
[1745899602752,0.063,147.37,147.36,11.49647065]
[1745899603065,0.063,147.37,147.36,17.6039625]
[1745899605471,0.063,147.37,147.36,11.49647065]
[1745899608767,0.063,147.37,147.36,17.6039625]
[1745899609272,0.063,147.37,147.36,11.49647065]
[1745899609866,0.063,147.37,147.36,11.35430908]
[1745899610046,0.063,147.37,147.35,13.4]
[1745899610246,0.063,147.37,147.35,24.75430908]
[1745899612966,0.063,147.37,147.35,13.4]
[1745899613166,11.41730908,147.37,147.31,13.4]
[1745899613363,94.31730908,147.37,147.33,11.35430908]
[1745899614049,82.963,147.37,147.33,11.35430908]
[1745899614250,89.07030754,147.37,147.34,11.35430908]
[1745899614572,89.07030754,147.37,147.35,11.35430908]
[1745899614773,82.963,147.37,147.35,11.35430908]
[1745899615773,82.963,147.37,147.36,11.35430908]
[1745899615966,0.063,147.37,147.36,11.35430908]
[1745899616267,0.063,147.37,147.36,17.6039625]
[1745899616472,0.063,147.37,147.36,31.0039625]
[1745899622281,0.063,147.37,147.36,24.89647065]
[1745899622581,0.063,147.37,147.36,24.75430908]
[1745899623567,0.063,147.37,147.36,13.4]
[1745899629694,0.063,147.37,147.36,24.75430908]
[1745899630492,0.063,147.37,147.36,13.4]
[1745899630686,0.063,147.37,147.35,11.35430908]
[1745899631490,0.063,147.37,147.34,0.14216157]
[1745899631677,0.063,147.37,147.35,11.35430908]
[1745899638182,0.063,147.37,147.34,11.49647065]
[1745899639092,0.063,147.37,147.35,11.35430908]
[1745899639389,0.063,147.37,147.36,11.49647065]
[1745899641201,0.063,147.37,147.33,13.4]
[1745899641407,11.41730908,147.37,147.33,13.4]
[1745899641702,11.35430908,147.35,147.33,13.4]
[1745899641909,11.35430908,147.34,147.29,13.4]
[1745899642081,11.35430908,147.32,147.29,13.4]
[1745899642903,11.35430908,147.34,147.3,11.35430908]
[1745899643088,6.10824948,147.35,147.31,11.35430908]
[1745899643281,6.10824948,147.35,147.32,11.35430908]
[1745899643482,82.9,147.36,147.33,11.35430908]
[1745899644188,89.00779626,147.36,147.33,11.35430908]
[1745899644603,100.36210534,147.36,147.32,11.35430908]
[1745899649321,89.00779626,147.36,147.33,11.35430908]
[1745899649705,82.9,147.36,147.34,11.35430908]
[1745899650307,0.063,147.37,147.34,11.35430908]
[1745899650507,0.063,147.37,147.36,11.35430908]
[1745899653622,0.063,147.37,147.35,11.35430908]
[1745899657720,0.063,147.37,147.36,11.35430908]
[1745899658318,0.063,147.37,147.36,11.49647065]
[1745899660512,0.063,147.37,147.36,17.6039625]
[1745899662304,0.063,147.37,147.36,11.49647065]
[1745899662713,0.063,147.37,147.36,11.35430908]
[1745899662916,0.063,147.37,147.36,11.49647065]
[1745899664113,0.063,147.37,147.36,17.6039625]
[1745899669128,0.063,147.37,147.36,37.61055616]
[1745899669302,0.063,147.39,147.38,30.14611951]
[1745899669614,0.063,147.39,147.38,31.50263033]
[1745899671119,0.063,147.39,147.38,37.60929337]
[1745899672908,0.063,147.39,147.38,11.49647065]
[1745899673298,0.063,147.39,147.38,11.35430908]
[1745899674746,0.063,147.39,147.36,11.35430908]
[1745899675030,19.0914578,147.39,147.35,13.4]
[1745899675222,19.0914578,147.39,147.35,24.75430908]
[1745899682330,0.063,147.39,147.36,11.35430908]
[1745899682530,0.063,147.39,147.37,11.35430908]
[1745899682719,0.063,147.39,147.36,11.35430908]
[1745899682920,0.063,147.39,147.37,11.35430908]
[1745899683219,0.063,147.39,147.36,11.35430908]
[1745899687533,0.063,147.39,147.35,24.75430908]
[1745899687720,0.063,147.39,147.35,11.35430908]
[1745899688322,11.35430908,147.37,147.33,13.54216157]
[1745899688526,11.35430908,147.37,147.33,24.75430908]
[1745899688830,11.35430908,147.37,147.33,13.4]
[1745899689820,6.10749185,147.36,147.33,13.4]
[1745899690536,6.10749185,147.36,147.33,24.75430908]
[1745899691747,6.10712432,147.37,147.34,11.35430908]
[1745899692649,6.1693839,147.39,147.36,11.35430908]
[1745899692833,0.063,147.39,147.37,11.35430908]
[1745899696140,0.063,147.39,147.35,6.10771026]
[1745899696339,0.063,147.39,147.37,11.35430908]
[1745899696648,0.063,147.39,147.38,12.85350195]
[1745899696949,0.063,147.39,147.38,44.90315081]
[1745899697133,0.063,147.4,147.39,0.14216157]
[1745899697335,0.063,147.4,147.39,11.49647065]
[1745899697927,0.063,147.4,147.39,17.60271937]
[1745899698349,0.063,147.4,147.39,18.95910004]
[1745899700748,0.063,147.4,147.39,37.6087489]
[1745899701048,0.063,147.4,147.39,18.95910004]
[1745899701250,0.063,147.4,147.39,17.60271937]
[1745899701843,0.063,147.4,147.39,11.35430908]
[1745899702144,0.063,147.4,147.38,24.75430908]
[1745899702334,0.063,147.4,147.38,13.4]
[1745899705649,18.15756122,147.39,147.38,13.4]
[1745899705861,18.15756122,147.39,147.35,18.15756122]
[1745899706036,0.063,147.4,147.34,13.4]
[1745899706037,18.15756122,147.38,147.34,31.55756122]
[1745899706554,18.15756122,147.39,147.35,18.15756122]
[1745899707238,24.26392323,147.39,147.35,18.15756122]
[1745899710557,18.15756122,147.38,147.34,31.55756122]
[1745899711057,24.26392323,147.39,147.35,18.15756122]
[1745899711751,0.063,147.4,147.37,18.15756122]
[1745899712337,24.32661728,147.4,147.36,18.15756122]
[1745899712657,18.15756122,147.38,147.34,31.55756122]
[1745899715465,6.10660727,147.39,147.37,18.15756122]
[1745899715655,0.063,147.4,147.38,18.15756122]
[1745899715959,0.063,147.4,147.39,18.15756122]
[1745899716160,0.063,147.4,147.38,18.15756122]
[1745899721473,18.15756122,147.39,147.31,6.5622]
[1745899721775,18.22056122,147.4,147.36,18.15756122]
[1745899723063,24.32665416,147.4,147.36,18.15756122]
[1745899723264,18.15756122,147.39,147.35,18.15756122]
[1745899724177,24.32665416,147.4,147.35,18.15756122]
[1745899724779,24.32665416,147.4,147.36,18.15756122]
[1745899727381,24.32665416,147.4,147.35,18.15756122]
[1745899727563,11.35147329,147.39,147.35,11.35147329]
[1745899727759,11.35147329,147.39,147.34,24.89363486]
[1745899728359,11.35147329,147.39,147.35,11.35147329]
[1745899728561,6.10666304,147.38,147.35,11.35147329]
[1745899730977,0.063,147.4,147.36,11.35147329]
[1745899731178,0.063,147.4,147.37,11.35147329]
[1745899734887,6.16883446,147.4,147.37,11.35147329]
[1745899735195,17.52030775,147.4,147.36,11.35147329]
[1745899735784,11.35147329,147.38,147.34,24.75147329]
[1745899735987,11.35147329,147.38,147.34,13.4]
[1745899736564,11.35147329,147.38,147.34,24.75147329]
[1745899737090,21.43342062,147.4,147.35,11.35147329]
[1745899737292,11.35147329,147.39,147.35,11.35147329]
[1745899738579,21.43342062,147.4,147.36,11.35147329]
[1745899738780,6.16883446,147.4,147.37,11.35147329]
[1745899740385,0.063,147.4,147.39,11.35147329]
[1745899746007,0.063,147.4,147.39,17.59988358]
[1745899746516,0.063,147.4,147.39,30.99988358]
[1745899748695,0.063,147.4,147.39,49.64953244]
[1745899749806,0.063,147.4,147.39,130.54953244]
[1745899749987,0.063,147.4,147.39,131.90593298]
[1745899750191,0.063,147.4,147.39,130.54953244]
[1745899750395,0.063,147.4,147.39,131.90593321]
[1745899753010,0.063,147.4,147.39,100.54841029]
[1745899753213,0.063,147.4,147.39,111.89988358]
[1745899754431,0.063,147.4,147.39,130.54953244]
[1745899757522,0.063,147.42,147.41,26.0]
[1745899757827,0.063,147.45,147.42,0.14216157]
[1745899758022,0.063,147.45,147.44,11.35147329]
[1745899758715,0.063,147.45,147.44,30.14328372]
[1745899758902,0.063,147.45,147.44,43.52328372]
[1745899759739,0.063,147.45,147.44,49.62746169]
[1745899764661,0.063,147.45,147.44,30.97781283]
[1745899764829,11.41447329,147.45,147.4,6.10583446]
[1745899765167,11.41447329,147.45,147.41,11.35147329]
[1745899765465,0.063,147.45,147.43,11.35147329]
[1745899765621,0.063,147.45,147.44,11.49363486]
[1745899766747,0.063,147.45,147.44,17.59781283]
[1745899769954,0.063,147.45,147.44,49.62746169]
[1745899770122,0.063,147.45,147.44,50.98349982]
[1745899771346,0.063,147.45,147.44,131.88349982]
[1745899815492,0.063,147.45,147.44,127.78274534]
[1745899821600,0.063,147.49,147.48,18.64964886]
[1745899821789,0.063,147.49,147.48,108.29820188]
[1745899823500,0.063,147.49,147.48,129.79806804]
[1745899827217,0.063,147.49,147.48,118.47403674]
[1745899830622,0.063,147.49,147.48,131.85403674]
[1745899837312,0.063,147.49,147.48,143.17806804]
[1745899837504,0.063,147.49,147.48,141.8223954]
[1745899841141,0.03,147.51,147.5,37.46619287]
[1745899841296,0.063,147.53,147.51,0.14216157]
[1745899841609,0.063,147.53,147.52,37.57202699]
[1745899842223,0.063,147.53,147.52,118.47202699]
[1745899842815,0.03,147.57,147.53,0.14216157]
[1745899843124,0.03,147.57,147.54,56.15501211]
[1745899843324,0.03,147.57,147.54,137.05501211]
[1745899843621,0.03,147.57,147.55,0.14216157]
[1745899843825,0.03,147.57,147.56,56.35137349]
[1745899845618,0.03,147.57,147.56,42.77184091]
[1745899845818,0.03,147.57,147.56,48.87105478]
[1745899847611,0.03,147.57,147.56,54.31342889]
[1745899849524,0.03,147.57,147.56,135.21342889]
[1745899849725,0.03,147.57,147.56,133.85845233]
[1745899851707,0.03,147.58,147.57,112.35902059]
[1745899852307,0.03,147.58,147.57,118.45782115]
[1745899852719,0.063,147.59,147.57,118.45782115]
[1745899852909,0.063,147.59,147.58,30.10433739]
[1745899854525,0.063,147.59,147.58,36.2027247]
[1745899855135,0.063,147.59,147.58,117.1027247]
[1745899856525,0.063,147.59,147.58,105.79019774]
[1745899856727,0.063,147.59,147.58,117.1027247]
[1745899861424,0.063,147.59,147.58,130.4627247]
[1745899861940,0.063,147.59,147.58,131.81735666]
[1745899862665,0.063,147.59,147.58,157.81735666]
[1745899862867,0.03,147.63,147.62,41.41686435]
[1745899863170,0.03,147.65,147.64,36.20024635]
[1745899863352,0.03,147.65,147.64,50.91447726]
[1745899863552,0.03,147.65,147.64,49.56024635]
[1745899866654,0.03,147.65,147.64,38.24771939]
[1745899866856,0.03,147.65,147.64,49.56024635]
[1745899867057,0.03,147.65,147.64,38.24771939]
[1745899867362,0.03,147.65,147.64,49.56024635]